bitfinex/quotes_ETHUSD_20230831
["timestamp","ask_amount","ask_price","bid_price","bid_amount"]
[1693484216497,17.52027,1712.3,1712.2,1.26511333]
[1693484216916,18.1324577,1712.3,1712.2,1.26511333]
[1693484217321,11.68018,1712.3,1712.2,1.26511333]
[1693484217985,12.00814393,1712.3,1712.2,1.26511333]
[1693484222115,25.26922811,1712.3,1711.6,1.26511333]
[1693484222315,17.52459,1711.9,1711.8,1.26511333]
[1693484222538,11.68306,1711.9,1711.8,1.26511333]
[1693484222720,5.84146,1711.9,1711.8,1.26511333]
[1693484223092,11.68292,1711.9,1711.8,1.26511333]
[1693484230647,17.52438,1711.9,1711.8,1.26511333]
[1693484231728,20.0948184,1711.9,1711.8,1.26511333]
[1693484232524,21.0918184,1711.9,1711.6,1.26511333]
[1693484232928,0.32605604,1711.8,1711.6,1.26511333]
[1693484233125,11.68428,1711.7,1711.6,1.26511333]
[1693484236389,19.279057,1711.7,1711.6,1.26511333]
[1693484238098,20.276057,1711.7,1711.6,1.26511333]
[1693484238701,23.14953765,1711.7,1711.6,1.26511333]
[1693484240527,23.14953765,1711.7,1711.3,1.26511333]
[1693484240897,0.997,1711.5,1711.3,1.26511333]
[1693484241197,11.68632,1711.4,1711.3,1.26511333]
[1693484241894,17.52948,1711.4,1711.3,1.26511333]
[1693484242393,19.966443,1711.4,1711.3,1.26511333]
[1693484243507,17.52948,1711.4,1711.3,1.26511333]
[1693484244432,19.869222,1711.4,1711.3,1.26511333]
[1693484247943,20.1923812,1711.4,1711.3,1.26511333]
[1693484250558,23.06586185,1711.4,1711.3,1.26511333]
[1693484251653,24.06286185,1711.4,1711.3,1.26511333]
[1693484251802,27.05346304,1711.4,1711.3,1.26511333]
[1693484253623,20.1923812,1711.4,1711.1,1.26511333]
[1693484260461,21.1893812,1711.4,1711.1,1.26511333]
[1693484261234,20.1923812,1711.4,1711.1,1.26511333]
[1693484273604,23.06586185,1711.4,1711.1,1.26511333]
[1693484273895,17.53155,1711.2,1711.1,1.26511333]
[1693484274303,17.85344247,1711.2,1711.1,1.26511333]
[1693484281592,6.16574247,1711.2,1711.1,1.26511333]
[1693484281780,0.32189247,1711.2,1711.1,1.26511333]
[1693484282514,6.16574247,1711.2,1711.1,1.26511333]
[1693484283597,12.00959247,1711.2,1711.1,1.26511333]
[1693484284660,6.16574247,1711.2,1711.1,1.26511333]
[1693484285865,12.00959247,1711.2,1711.1,1.26511333]
[1693484287569,6.16574247,1711.2,1711.1,1.26511333]
[1693484290666,0.32189247,1711.2,1711.1,1.26511333]
[1693484291463,0.32189247,1711.2,1711.1,1.98605766]
[1693484291763,0.32189247,1711.2,1711.1,7.83024766]
[1693484292932,7.37193286,1711.4,1711.1,7.83024766]
[1693484293131,5.84354,1711.3,1711.1,7.83024766]
[1693484293461,6.16207827,1711.3,1711.1,7.83024766]
[1693484293879,6.16207827,1711.3,1711.1,1.98605766]
[1693484294384,12.00561827,1711.3,1711.1,1.26511333]
[1693484296695,0.31853827,1711.3,1711.1,7.10928333]
[1693484297259,6.16204827,1711.3,1711.1,7.10928333]
[1693484297999,0.31853827,1711.3,1711.1,7.10928333]
[1693484298202,6.16204827,1711.3,1711.1,7.10928333]
[1693484298694,6.16204827,1711.3,1711.1,1.26511333]
[1693484298859,12.00555827,1711.3,1711.1,1.26511333]
[1693484299369,13.85158521,1711.3,1711.1,1.26511333]
[1693484299590,14.46306635,1711.3,1711.1,1.26511333]
[1693484299899,12.00555827,1711.3,1711.1,1.26511333]
[1693484300483,6.16204827,1711.3,1711.1,1.26511333]
[1693484300795,6.16204827,1711.3,1711.1,7.10930333]
[1693484319618,0.31853827,1711.3,1711.1,12.95349333]
[1693484321197,0.31853827,1711.3,1711.1,18.79768333]
[1693484322118,0.6125844,1711.4,1711.3,1.26511333]
[1693484322422,9.147121,1711.5,1711.3,1.26511333]
[1693484322790,0.93168262,1711.4,1711.3,1.26511333]
[1693484326538,0.31909822,1711.4,1711.3,1.26511333]
[1693484326931,6.16225822,1711.4,1711.3,1.26511333]
[1693484327134,6.77484262,1711.4,1711.3,1.26511333]
[1693484327506,6.77497589,1711.4,1711.3,1.26511333]
[1693484327831,6.16225822,1711.4,1711.3,1.26511333]
[1693484331451,6.77497589,1711.4,1711.3,1.26511333]
[1693484331950,6.16225822,1711.4,1711.3,1.26511333]
[1693484332853,8.30594713,1711.4,1711.3,1.26511333]
[1693484333030,14.14910713,1711.4,1711.3,1.26511333]
[1693484335030,20.91134363,1711.4,1711.3,1.26511333]
[1693484335227,20.29862596,1711.4,1711.3,1.26511333]
[1693484336023,26.19403186,1711.4,1711.3,1.26511333]
[1693484336226,20.29862596,1711.4,1711.3,1.26511333]
[1693484336422,23.17210661,1711.4,1711.3,1.26511333]
[1693484336649,30.06458918,1711.4,1711.3,1.26511333]
[1693484337541,29.14551268,1711.4,1711.3,1.26511333]
[1693484337746,30.06440408,1711.4,1711.3,1.26511333]
[1693484337969,24.16892151,1711.4,1711.3,1.26511333]
[1693484339863,23.17192151,1711.4,1711.3,1.26511333]
[1693484340096,29.06745729,1711.4,1711.3,1.26511333]
[1693484343706,11.48560151,1711.4,1711.3,1.26511333]
[1693484344909,17.32876151,1711.4,1711.3,1.26511333]
[1693484346575,23.22430496,1711.4,1711.3,1.26511333]
[1693484347508,17.32876151,1711.4,1711.3,1.26511333]
[1693484350614,11.48560151,1711.4,1711.3,1.26511333]
[1693484351792,17.32876151,1711.4,1711.3,1.26511333]
[1693484357420,23.77652741,1711.4,1711.3,1.26511333]
[1693484357626,24.44899043,1711.4,1711.3,1.26511333]
[1693484359240,18.60583043,1711.4,1711.3,1.26511333]
[1693484360299,28.39449564,1711.4,1711.0,0.1]
[1693484360606,14.215609,1711.1,1711.0,0.1]
[1693484360822,17.08884663,1711.1,1711.0,0.1]
[1693484361207,22.33208901,1711.1,1711.0,0.1]
[1693484362543,23.25022641,1711.1,1711.0,0.1]
[1693484362830,25.53855697,1711.1,1711.0,0.1]
[1693484363418,26.45669437,1711.1,1711.0,0.1]
[1693484363735,25.53855697,1711.1,1711.0,0.1]
[1693484365295,25.53855697,1711.1,1710.6,13.76726]
[1693484365296,25.53855697,1711.1,1710.6,11.69141]
[1693484366244,26.45669437,1711.1,1710.5,5.94607]
[1693484366445,4.25451802,1711.0,1710.5,5.94607]
[1693484366600,17.53506,1710.9,1710.5,5.94607]
[1693484366798,18.53206,1710.9,1710.5,11.79247]
[1693484367227,18.53206,1710.9,1710.5,5.94623]
[1693484367534,18.53206,1710.9,1710.5,5.9462]
[1693484367737,1.853206,1710.8,1710.5,5.9462]
[1693484368046,8.01323522,1710.8,1710.5,5.9462]
[1693484368198,13.85868522,1710.8,1710.5,0.1]
[1693484368397,19.70413522,1710.8,1710.5,0.1]
[1693484368638,1.97041352,1710.7,1710.5,0.1]
[1693484368934,5.8459,1710.6,1710.5,0.1]
[1693484369137,7.81613352,1710.7,1710.5,0.1]
[1693484369514,13.66186352,1710.7,1710.5,0.1]
[1693484373712,19.50759352,1710.7,1710.5,0.1]
[1693484373913,7.79665935,1710.6,1710.5,0.1]
[1693484377964,22.36194,1710.6,1710.5,0.1]
[1693484378165,23.35894,1710.6,1710.5,0.1]
[1693484380482,22.36194,1710.6,1710.5,0.1]
[1693484382863,22.6752036,1710.6,1710.5,0.1]
[1693484384365,23.6722036,1710.6,1710.5,0.1]
[1693484385976,33.05135611,1710.6,1710.5,0.1]
[1693484386676,27.1522036,1710.6,1710.5,0.1]
[1693484386884,33.05125611,1710.6,1710.5,0.1]
[1693484389278,3.997,1710.5,1710.4,0.1]
[1693484389467,38.09037877,1710.5,1710.4,0.1]
[1693484390719,37.09337877,1710.5,1710.4,0.1]
[1693484391437,34.09337877,1710.5,1710.4,0.1]
[1693484395984,29.61637877,1710.5,1710.4,0.1]
[1693484396494,5.89905251,1710.5,1710.4,0.1]
[1693484396795,12.0054336,1710.6,1710.4,0.1]
[1693484399922,12.0054336,1710.6,1710.4,0.05]
[1693484401630,20.72502425,1710.6,1710.4,0.05]
[1693484401830,21.72202425,1710.6,1710.4,0.05]
[1693484402031,2.17220243,1710.5,1710.4,0.05]
[1693484402270,13.86468243,1710.5,1710.4,0.05]
[1693484402477,14.17535506,1710.5,1710.4,0.05]
[1693484403476,20.07401797,1710.5,1710.4,0.05]
[1693484405202,25.92025797,1710.5,1710.4,0.05]
[1693484405363,29.79073862,1710.5,1710.4,0.05]
[1693484405891,29.79086058,1710.5,1710.4,0.05]
[1693484409363,30.27086058,1710.5,1710.4,0.05]
[1693484410100,58.42138648,1710.5,1710.2,0.1]
[1693484410305,18.53776,1710.3,1710.2,0.1]
[1693484410513,27.31002552,1710.3,1710.2,0.1]
[1693484410665,27.79002552,1710.3,1710.2,0.1]
[1693484411662,28.02418552,1710.3,1710.2,0.1]
[1693484412004,31.71399568,1710.3,1710.2,0.1]
[1693484412567,37.85799568,1710.3,1710.2,0.1]
[1693484412768,53.01866854,1710.3,1710.2,0.1]
[1693484413009,53.05143854,1710.3,1710.2,0.1]
[1693484414408,44.20108442,1710.3,1710.2,0.1]
[1693484414708,38.05708442,1710.3,1710.2,0.1]
[1693484415477,46.90754311,1710.3,1710.2,0.1]
[1693484416189,38.05708442,1710.3,1710.2,0.1]
[1693484419018,38.53502279,1710.3,1710.2,0.1]
[1693484420639,34.53802279,1710.3,1710.2,0.1]
[1693484420839,27.36821263,1710.3,1710.2,0.1]
[1693484421052,12.32295361,1710.3,1710.2,0.1]
[1693484421559,18.13773951,1710.3,1710.2,0.1]
[1693484421744,18.13768706,1710.3,1710.2,0.1]
[1693484422429,6.44384706,1710.3,1710.2,0.1]
[1693484422629,0.54447874,1710.3,1710.2,0.1]
[1693484422860,0.54447874,1710.3,1710.2,0.704734]
[1693484423672,0.54447874,1710.3,1710.2,6.551994]
[1693484431746,0.54447874,1710.3,1710.2,0.1]
[1693484431929,6.39139874,1710.3,1710.2,0.1]
[1693484435618,12.23831874,1710.3,1710.2,0.1]
[1693484437629,18.08523874,1710.3,1710.2,0.1]
[1693484440255,12.23831874,1710.3,1710.2,0.1]
[1693484440553,14.10777617,1710.3,1710.2,0.1]
[1693484440940,19.95469617,1710.3,1710.2,0.1]
[1693484441541,14.10777617,1710.3,1710.2,0.1]
[1693484445964,19.95469617,1710.3,1710.2,0.1]
[1693484450576,22.82817682,1710.3,1710.2,0.1]
[1693484450750,23.43784234,1710.3,1710.2,0.1]
[1693484453591,30.63935456,1710.3,1710.2,0.1]
[1693484455597,34.67028461,1710.3,1710.2,0.1]
[1693484455914,34.97511737,1710.3,1710.1,0.1]
[1693484456127,32.27859385,1710.2,1710.1,0.1]
[1693484456482,37.60519153,1710.2,1710.1,0.1]
[1693484456814,36.38214681,1710.2,1710.1,0.1]
[1693484458501,37.60460194,1710.2,1710.1,0.1]
[1693484458804,36.38214681,1710.2,1710.0,0.1]
[1693484459001,14.48641684,1710.1,1710.0,0.1]
[1693484459202,34.90272749,1710.1,1710.0,0.1]
[1693484459395,34.90270014,1710.1,1710.0,0.1]
[1693484459591,42.36558594,1710.1,1710.0,0.1]
[1693484459794,41.58919594,1710.1,1709.9,0.1]
[1693484459992,14.84575047,1710.0,1709.9,0.1]
[1693484460178,32.38960047,1710.0,1709.9,0.1]
[1693484460382,34.09202589,1710.0,1709.9,0.1]
[1693484460581,32.38960047,1710.0,1709.9,0.1]
[1693484461119,32.38936754,1710.0,1709.9,0.1]
[1693484462068,16.46548727,1710.0,1709.9,0.1]
[1693484462273,11.6959,1710.0,1709.9,0.1]
[1693484462590,5.84795,1710.0,1709.9,0.1]
[1693484464864,0.3218858,1710.1,1709.9,5.94829]
[1693484465070,6.45814768,1710.2,1709.9,5.94829]
[1693484465270,12.30569768,1710.2,1709.9,5.94829]
[1693484465570,12.30569768,1710.2,1709.9,7.722811]
[1693484467500,11.69503,1710.2,1709.9,7.722811]
[1693484468345,5.84748,1710.2,1709.9,7.722811]
[1693484468544,12.53896768,1710.3,1709.9,13.571101]
[1693484468843,12.53896768,1710.3,1710.0,0.78883444]
[1693484469044,18.38617768,1710.3,1710.0,0.78883444]
[1693484469245,19.30261552,1710.3,1709.9,0.1]
[1693484469447,18.38617768,1710.3,1709.9,0.1]
[1693484471845,18.38654623,1710.3,1709.9,5.94828]
[1693484472046,18.38654623,1710.3,1710.0,0.594828]
[1693484472951,0.32590477,1710.2,1710.0,0.594828]
[1693484473104,6.17336477,1710.2,1710.0,0.594828]
[1693484473506,12.02082477,1710.2,1710.0,0.594828]
[1693484474346,12.02082477,1710.2,1709.9,11.79656]
[1693484474550,12.02082477,1710.2,1709.9,5.94828]
[1693484475054,18.479321,1710.2,1709.9,0.1]
[1693484475258,22.26935599,1710.2,1709.9,0.1]
[1693484475412,2.83797183,1710.1,1709.9,0.1]
[1693484475611,17.54385,1710.0,1709.9,0.1]
[1693484476752,11.6959,1710.0,1709.9,0.1]
[1693484477753,17.54385,1710.0,1709.9,0.1]
[1693484478518,20.41733065,1710.0,1709.9,0.1]
[1693484478719,23.4273299,1710.0,1709.9,0.1]
[1693484482500,14.70589925,1710.0,1709.9,0.1]
[1693484484121,20.55384925,1710.0,1709.9,0.1]
[1693484487974,20.87878347,1710.0,1709.9,0.1]
[1693484489175,12.02083422,1710.0,1709.9,0.1]
[1693484490638,17.86878422,1710.0,1709.9,0.1]
[1693484493331,12.02083422,1710.0,1709.9,0.1]
[1693484494453,17.86878422,1710.0,1709.9,0.1]
[1693484495282,18.47982045,1710.0,1709.9,0.1]
[1693484495594,21.00422693,1710.0,1709.9,0.1]
[1693484499708,15.15627693,1710.0,1709.9,0.1]
[1693484499914,6.78392045,1710.0,1709.9,0.1]
[1693484500114,0.32493422,1710.0,1709.9,11.79658]
[1693484501012,0.61103623,1710.1,1709.9,11.79658]
[1693484501216,0.31196759,1710.0,1709.9,11.79658]
[1693484501418,0.31196759,1710.0,1709.9,7.712808]
[1693484503117,0.31196759,1710.0,1709.9,5.94829]
[1693484517731,0.31196759,1710.0,1709.9,0.1]
[1693484517732,12.00786759,1710.0,1709.9,0.1]
[1693484518033,12.61890382,1710.0,1709.9,0.1]
[1693484519834,13.53545816,1710.0,1709.9,0.1]
[1693484522477,12.61890382,1710.0,1709.9,0.1]
[1693484522773,12.61890382,1710.0,1709.9,12.39144]
[1693484522774,0.92300382,1710.0,1709.9,12.39144]
[1693484523136,0.31196759,1710.0,1709.9,12.39144]
[1693484525131,0.31196759,1710.0,1709.9,13.38844]
[1693484525337,0.31196759,1710.0,1709.9,19.23673]
[1693484525885,1.76175057,1710.3,1709.9,28.25421065]
[1693484526188,1.76175057,1710.3,1710.0,2.96549544]
[1693484526479,0.84519623,1710.3,1710.1,17.54283]
[1693484527559,0.23416,1710.3,1710.1,17.54283]
[1693484528150,0.23416,1710.3,1710.1,26.56031065]
[1693484528758,0.23416,1710.3,1710.1,27.55731065]
[1693484528994,0.23416,1710.3,1710.2,0.59486]
[1693484529302,0.61159664,1710.4,1710.2,18.13664]
[1693484530055,0.61159664,1710.4,1710.2,27.15412065]
[1693484530269,0.61159664,1710.5,1710.2,28.15112065]
[1693484532872,0.29711691,1710.4,1710.2,28.15112065]
[1693484533077,0.29711691,1710.4,1710.3,1.96849544]
[1693484533262,0.29711691,1710.4,1710.3,19.50925544]
[1693484533462,1.98614249,1710.6,1710.3,19.50925544]
[1693484534065,1.06874752,1710.6,1710.3,19.50925544]
[1693484534265,1.98614249,1710.6,1710.3,19.50925544]
[1693484534491,1.98614249,1710.6,1710.4,0.59486]
[1693484534762,1.06874752,1710.6,1710.5,5.84624]
[1693484536401,2.56989664,1710.7,1710.5,17.53872]
[1693484536621,2.14058826,1710.8,1710.5,18.53572]
[1693484536622,1.52899161,1710.8,1710.5,18.53572]
[1693484536767,0.61159664,1710.8,1710.7,5.84556]
[1693484537807,7.37399161,1710.9,1710.7,5.84556]
[1693484538307,7.8374402,1710.9,1710.7,5.84556]
[1693484538667,6.92004523,1710.9,1710.7,5.84556]
[1693484542293,6.30844859,1710.9,1710.7,5.84556]
[1693484542499,6.30844859,1710.9,1710.8,0.584556]
[1693484542500,6.91880958,1710.9,1710.8,0.584556]
[1693484542696,6.97165585,1710.9,1710.8,0.584556]
[1693484542901,12.81652585,1710.9,1710.7,5.84543]
[1693484543075,6.91867958,1710.9,1710.7,5.84543]
[1693484543616,6.30831859,1710.9,1710.7,5.84543]
[1693484544175,0.46344859,1710.9,1710.7,11.69099]
[1693484544471,9.34901248,1711.0,1710.7,11.69099]
[1693484544691,5.89780686,1710.9,1710.8,1.169099]
[1693484545608,11.74267686,1710.9,1710.8,1.169099]
[1693484547314,5.89780686,1710.9,1710.8,7.014309]
[1693484547887,6.18827186,1710.9,1710.8,7.014309]
[1693484549426,0.290465,1710.9,1710.8,12.859519]
[1693484549835,0.290465,1710.9,1710.8,18.704729]
[1693484550328,5.84389,1711.2,1710.8,19.701729]
[1693484550486,11.68793,1711.2,1711.0,5.84453]
[1693484550687,12.15162757,1711.2,1711.0,5.84453]
[1693484551434,0.46369757,1711.2,1711.0,11.68906]
[1693484551619,15.59181,1711.3,1711.0,11.68906]
[1693484551800,5.89667422,1711.2,1711.0,11.68906]
[1693484552140,5.89667422,1711.2,1711.0,12.858159]
[1693484557844,5.89667422,1711.2,1711.0,18.702689]
[1693484560039,2.34973014,1711.3,1711.0,18.702689]
[1693484560040,0.47813014,1711.3,1711.1,3.997]
[1693484560249,9.87507,1711.5,1711.2,11.6877]
[1693484561277,9.87507,1711.5,1711.2,13.08195644]
[1693484561481,4.0321,1711.5,1711.2,18.92580644]
[1693484562966,0.26668738,1711.4,1711.2,18.92580644]
[1693484568760,0.46343858,1711.6,1711.2,18.92580644]
[1693484568958,5.89553866,1711.5,1711.2,18.92580644]
[1693484569253,1.9527,1711.7,1711.4,17.5293]
[1693484569466,5.89548753,1711.6,1711.4,17.5293]
[1693484574931,5.89548753,1711.6,1711.1,3.0]
[1693484575065,11.73836753,1711.5,1711.2,5.84384]
[1693484575260,11.73875753,1711.4,1711.1,14.6882]
[1693484575578,11.73908753,1711.3,1711.0,5.8443]
[1693484575794,11.6872,1711.3,1711.0,5.8443]
[1693484576000,11.6872,1711.3,1711.0,11.68883]
[1693484576001,5.8436,1711.3,1711.0,11.68883]
[1693484576301,5.84327,1711.4,1711.0,17.53336]
[1693484576507,1.9039,1711.3,1711.0,17.53336]
[1693484576665,1.9039,1711.3,1711.2,5.84385]
[1693484577268,5.8429,1711.5,1711.2,5.84385]
[1693484577469,13.70287,1711.6,1711.2,17.53155]
[1693484577470,5.89569216,1711.4,1711.2,17.53155]
[1693484577699,1.9039,1711.5,1711.2,20.40503065]
[1693484577915,2.0177,1711.6,1711.2,20.40503065]
[1693484578230,0.26894045,1711.3,1711.2,23.67555]
[1693484578372,1.9039,1711.6,1711.2,26.67555]
[1693484578572,5.89533138,1711.5,1711.2,23.67555]
[1693484579087,5.89533138,1711.5,1711.2,24.67255]
[1693484579601,5.89533138,1711.5,1711.3,2.87348065]
[1693484579810,1.9039,1711.6,1711.4,11.68632]
[1693484580483,5.89515029,1711.5,1711.4,11.68632]
[1693484580684,5.89513948,1711.5,1711.4,11.68632]
[1693484580902,1.9039,1711.6,1711.4,11.68632]
[1693484581225,1.9039,1711.6,1711.4,17.52948]
[1693484582022,0.101,1711.8,1711.4,17.52948]
[1693484582234,5.89473942,1711.7,1711.5,1.752948]
[1693484582390,5.89473942,1711.7,1711.6,5.84248]
[1693484582587,5.89472019,1711.7,1711.6,5.84248]
[1693484587679,24.41814019,1711.7,1711.2,14.68719]
[1693484587977,11.68578,1711.5,1711.2,5.84355]
[1693484588767,17.52867,1711.5,1711.1,5.84398]
[1693484588926,18.52567,1711.5,1711.1,11.68805]
[1693484589140,11.68735,1711.3,1710.9,5.84469]
[1693484589493,5.84367,1711.3,1711.0,11.68906]
[1693484589642,13.69871,1711.4,1711.0,17.53359]
[1693484589835,7.85532,1711.4,1711.0,17.53359]
[1693484590485,13.69864,1711.4,1711.0,17.53359]
[1693484592183,7.85532,1711.4,1711.0,17.53359]
[1693484592364,2.012,1711.4,1711.0,17.53359]
[1693484592930,0.26910518,1711.3,1711.0,17.53359]
[1693484604086,6.11263518,1711.3,1711.0,17.53359]
[1693484604608,6.72255092,1711.3,1711.0,17.53359]
[1693484605292,6.11263518,1711.3,1711.0,17.53359]
[1693484605700,6.72255092,1711.3,1711.0,17.53359]
[1693484607711,6.72255092,1711.3,1711.0,11.68906]
[1693484609088,12.56608092,1711.3,1710.9,5.8448]
[1693484609291,0.60991574,1711.2,1710.9,11.68953]
[1693484609689,2.50591574,1711.2,1710.9,11.68953]
[1693484609899,0.26733109,1711.1,1710.9,11.68953]
[1693484615896,0.26733109,1711.1,1710.9,17.5344]
[1693484616625,0.26733109,1711.1,1710.9,20.40788065]
[1693484616841,0.26733109,1711.1,1710.9,21.40488065]
[1693484617157,1.52478936,1711.4,1711.0,10.01448065]
[1693484617349,0.60991574,1711.4,1711.1,27.67336]
[1693484617519,0.60991574,1711.4,1711.2,2.87348065]
[1693484617728,1.52478936,1711.5,1711.3,11.68702]
[1693484619120,0.60991574,1711.4,1711.3,11.68702]
[1693484622959,0.87891461,1711.4,1711.3,11.68702]
[1693484623338,0.26899887,1711.4,1711.3,17.53053]
[1693484623538,0.26899887,1711.4,1711.3,20.40401065]
[1693484625863,0.26899887,1711.4,1711.3,26.54801065]
[1693484635070,3.37256735,1711.6,1711.3,26.54801065]
[1693484636576,2.45620694,1711.6,1711.3,26.54801065]
[1693484637975,0.2550008,1711.5,1711.3,26.54801065]
[1693484638461,0.2550008,1711.5,1711.3,27.01222013]
[1693484639535,0.2550008,1711.5,1711.4,2.87348065]
[1693484639738,0.2550008,1711.5,1711.4,14.55980065]
[1693484641453,0.2550008,1711.5,1711.4,36.38712065]
[1693484641633,0.2550008,1711.5,1711.4,39.86712065]
[1693484641850,0.2550008,1711.5,1711.4,40.88241989]
[1693484642055,0.101,1711.8,1711.4,40.88241989]
[1693484642293,0.101,1711.8,1711.6,7.141]
[1693484642494,0.101,1711.8,1711.7,29.54390065]
[1693484648207,0.101,1711.8,1711.7,30.54090065]
[1693484650375,0.101,1711.8,1711.7,29.54390065]
[1693484652892,0.35168703,1711.8,1711.7,29.54390065]
[1693484653113,0.35168703,1711.8,1711.7,30.02033835]
[1693484653310,0.101,1711.8,1711.7,30.02033835]
[1693484653668,0.35168703,1711.8,1711.7,30.02033835]
[1693484654594,0.101,1711.8,1711.7,30.02033835]
[1693484654993,0.35168703,1711.8,1711.7,30.02033835]
[1693484655194,0.35168703,1711.8,1711.7,31.01733835]
[1693484656698,0.101,1711.8,1711.7,31.01733835]
[1693484657432,0.35208095,1711.8,1711.7,31.01733835]
[1693484660535,0.35208095,1711.8,1711.7,30.02033835]
[1693484661798,0.35208095,1711.8,1711.7,32.08091233]
[1693484661992,0.101,1711.8,1711.7,32.08091233]
[1693484662541,0.101,1712.0,1711.9,35.3513]
[1693484662834,0.101,1712.0,1711.9,42.22178065]
[1693484664037,0.101,1712.0,1711.9,36.38032065]
[1693484665506,0.101,1712.0,1711.9,36.86032065]
[1693484666651,0.101,1712.1,1712.0,9.144]
[1693484666829,0.101,1712.1,1712.0,34.01784065]
[1693484668547,0.101,1712.1,1712.0,33.53784065]
[1693484670760,0.101,1712.2,1712.0,34.01784065]
[1693484670960,0.101,1712.2,1712.1,13.01448065]
[1693484671256,0.101,1712.2,1712.1,31.01682065]
[1693484675846,0.101,1712.2,1712.1,30.53682065]
[1693484678239,0.101,1712.2,1712.1,31.01682065]
[1693484679823,0.101,1712.3,1712.2,3.0]
[1693484679993,0.101,1712.3,1712.2,33.01877065]
[1693484680777,0.101,1712.3,1712.2,34.59934463]
[1693484683021,0.101,1712.3,1712.2,34.01577065]
[1693484684976,0.101,1712.3,1712.2,33.53577065]
[1693484690326,0.101,1712.3,1712.2,32.53877065]
[1693484690486,0.101,1712.3,1712.2,29.53877065]
[1693484690688,0.3220408,1712.3,1712.2,29.53877065]
[1693484691432,0.101,1712.3,1712.2,29.53877065]
[1693484692030,0.3220408,1712.3,1712.2,29.53877065]
[1693484693216,0.101,1712.3,1712.2,29.53877065]
[1693484695220,0.32178548,1712.3,1712.2,29.53877065]
[1693484695700,0.101,1712.3,1712.2,23.39477065]
[1693484695903,0.32178548,1712.3,1712.2,20.52129]
[1693484700765,0.32178548,1712.3,1712.2,23.39477065]
[1693484701643,0.32178548,1712.3,1712.2,30.53577065]
[1693484701844,0.101,1712.3,1712.2,30.53577065]
[1693484702841,0.101,1712.3,1712.2,23.39477065]
[1693484703051,0.32178548,1712.3,1712.2,23.39477065]
[1693484706386,0.32178548,1712.3,1712.2,17.55434065]
[1693484706545,0.32178548,1712.3,1712.2,23.39477065]
[1693484722502,0.32178548,1712.3,1712.2,14.68086]
[1693484722821,0.32178548,1712.3,1712.2,8.84043]
[1693484723149,0.32178548,1712.3,1712.2,14.68086]
[1693484724616,0.32178548,1712.3,1712.2,20.52129]
[1693484727454,0.32178548,1712.3,1712.2,14.68086]
[1693484728247,0.32178548,1712.3,1712.2,8.84043]
[1693484728566,0.93264515,1712.3,1712.2,8.84043]
[1693484728914,0.93264515,1712.3,1712.2,14.68086]
[1693484729713,0.32178548,1712.3,1712.2,14.68086]
[1693484730178,0.32178548,1712.3,1712.2,20.52129]
[1693484731094,0.39132725,1712.3,1712.2,23.39477065]
[1693484741012,0.39132725,1712.3,1712.2,14.68086]
[1693484742185,0.39132725,1712.3,1712.2,20.52129]
[1693484742713,0.39132725,1712.3,1712.2,23.39477065]
[1693484742863,0.39132725,1712.3,1712.2,24.39177065]
[1693484743209,0.39132725,1712.3,1712.2,30.53577065]
[1693484748733,0.39132725,1712.3,1712.2,40.87108036]
[1693484749019,0.101,1712.4,1712.2,48.84688025]
[1693484749222,0.101,1712.4,1712.3,14.50936036]
[1693484749512,0.101,1712.4,1712.3,32.02963036]
[1693484750531,0.101,1712.7,1712.6,29.50028]
[1693484750676,0.101,1712.7,1712.6,35.37376065]
[1693484752279,0.35380264,1712.7,1712.6,35.37376065]
[1693484753027,0.101,1712.7,1712.6,35.37376065]
[1693484754526,0.35380264,1712.7,1712.6,36.85076065]
[1693484754957,0.101,1712.7,1712.6,36.85076065]
[1693484756520,0.101,1712.7,1712.6,42.68983065]
[1693484758844,0.101,1712.7,1712.6,43.70436515]
[1693484759161,0.101,1712.7,1712.6,42.68983065]
[1693484760874,0.101,1712.7,1712.6,43.70436483]
[1693484761371,0.101,1712.7,1712.6,44.59952229]
[1693484761548,0.101,1712.7,1712.6,43.58498811]
[1693484763947,0.101,1712.7,1712.6,43.75723187]
[1693484764492,0.101,1712.7,1712.6,44.21323036]
[1693484766550,0.101,1713.0,1712.7,3.0]
[1693484766801,0.101,1713.0,1712.9,7.141]
[1693484766952,0.101,1713.0,1712.9,30.52863065]
[1693484767352,0.35508392,1713.0,1712.9,30.52863065]
[1693484769691,0.35508392,1713.0,1712.9,23.38763065]
[1693484769881,0.35508392,1713.0,1712.9,8.83805]
[1693484770080,0.35508392,1713.0,1712.9,14.6761]
[1693484772025,0.35508392,1713.0,1712.9,23.38763065]
[1693484773208,0.35508392,1713.0,1712.9,14.6761]
[1693484773408,0.35508392,1713.0,1712.9,8.83805]
[1693484773631,0.35508392,1713.0,1712.7,11.67715]
[1693484773883,0.35508392,1713.0,1712.8,5.83828]
[1693484774178,0.35508392,1713.0,1712.7,5.83857]
[1693484774179,12.03064392,1713.0,1712.7,5.83857]
[1693484774341,1.20306439,1712.9,1712.7,5.83857]
[1693484774542,1.20306439,1712.9,1712.7,17.51603]
[1693484774732,0.25470578,1712.8,1712.7,17.51603]
[1693484774930,0.25470578,1712.8,1712.7,20.51603]
[1693484775135,0.101,1713.0,1712.7,20.51603]
[1693484775336,1.8646,1712.9,1712.7,20.51603]
[1693484775536,0.101,1713.0,1712.7,20.51603]
[1693484775743,0.917023,1713.0,1712.7,20.51603]
[1693484775943,2.781623,1713.0,1712.7,20.51603]
[1693484776366,8.619333,1713.0,1712.7,20.51603]
[1693484776546,8.619333,1713.0,1712.7,14.6773]
[1693484777557,2.781623,1713.0,1712.7,3.0]
[1693484777874,21.291753,1713.0,1712.5,5.83919]
[1693484778184,21.291753,1713.0,1712.5,11.6786]
[1693484778185,5.83841,1712.8,1712.5,11.6786]
[1693484778390,13.8055053,1712.9,1712.5,11.6786]
[1693484778599,1.9805,1712.8,1712.5,11.6786]
[1693484778886,1.9805,1712.8,1712.5,17.51801]
[1693484779739,1.9805,1712.8,1712.7,11.67746]
[1693484781078,2.1328,1712.9,1712.7,11.67746]